bitfinex-derivatives/quotes_BTCF0:USTF0_20251229
["timestamp","ask_amount","ask_price","bid_price","bid_amount"]
[1767001141129,0.0113122,88513.0,88486.0,0.09612]
[1767001141322,0.09612,88517.0,88486.0,0.18388]
[1767001141913,0.0001694,88510.0,88493.0,0.0001694]
[1767001142114,0.0001694,88510.0,88493.0,0.0301694]
[1767001142525,0.0113089,88539.0,88497.0,0.0113142]
[1767001142832,0.0113091,88537.0,88498.0,0.15388]
[1767001143026,0.17797721,88536.0,88498.0,0.18388]
[1767001143331,0.12021721,88535.0,88504.0,0.0113133]
[1767001143526,0.15388,88547.0,88512.0,0.0113123]
[1767001143831,0.02410557,88546.0,88520.0,0.0113112]
[1767001144021,0.09612,88547.0,88524.0,0.0001694]
[1767001144331,0.09612,88547.0,88525.0,0.09612]
[1767001144521,0.09612,88547.0,88525.0,0.12612]
[1767001145325,0.0113083,88544.0,88524.0,0.0001694]
[1767001145533,0.0113081,88545.0,88515.0,0.05776]
[1767001145723,0.0113081,88545.0,88515.0,0.08776]
[1767001145923,0.09612,88547.0,88515.0,0.08776]
[1767001146242,0.0113088,88540.0,88515.0,0.08776]
[1767001146419,0.0001694,88536.0,88519.0,0.0001694]
[1767001146930,0.0113094,88535.0,88519.0,0.0001694]
[1767001147127,0.0113094,88535.0,88506.0,0.011313]
[1767001147436,0.0113094,88535.0,88511.0,0.05776]
[1767001147730,0.0113096,88533.0,88511.0,0.05776]
[1767001148131,0.0113096,88533.0,88513.0,0.0001694]
[1767001148325,0.0962894,88536.0,88480.0,0.18221692]
[1767001148530,0.0962894,88536.0,88493.0,0.0113146]
[1767001148531,0.18221692,88530.0,88493.0,0.0113146]
[1767001148825,0.09612,88536.0,88493.0,0.03]
[1767001148826,0.0113111,88522.0,88493.0,0.03]
[1767001149032,0.15388,88521.0,88497.0,0.0113142]
[1767001149235,0.09612,88520.0,88497.0,0.0113142]
[1767001149428,0.0001694,88517.0,88500.0,0.0001694]
[1767001150027,0.0113122,88513.0,88485.0,0.05776]
[1767001150331,0.0001694,88517.0,88491.0,0.0113149]
[1767001150525,7e-08,88547.0,88528.0,0.0113102]
[1767001150727,0.0113086,88541.0,88516.0,0.09612]
[1767001150930,0.15388,88552.0,88516.0,0.09612]
[1767001150931,0.02414942,88540.0,88516.0,0.03]
[1767001151131,0.05776,88541.0,88520.0,0.0113113]
[1767001151328,0.02391127,88540.0,88500.0,0.18221692]
[1767001151530,0.0001694,88529.0,88511.0,0.0001694]
[1767001151825,0.15388,88528.0,88473.0,0.06075877]
[1767001152031,0.02390829,88527.0,88500.0,0.0113138]
[1767001152232,0.02390829,88526.0,88500.0,0.0413138]
[1767001152431,0.0113108,88524.0,88500.0,0.0413138]
[1767001152628,0.02390829,88523.0,88503.0,0.0113134]
[1767001152832,0.02390829,88523.0,88504.0,0.0001694]
[1767001153023,0.0001694,88529.0,88515.0,0.0113119]
[1767001153226,0.15388,88539.0,88509.0,0.09612]
[1767001153535,0.09612,88538.0,88522.0,0.011311]
[1767001153739,0.09612,88538.0,88511.0,0.0113123]
[1767001153930,0.05776,88543.0,88514.0,0.011312]
[1767001154132,0.07831011,88571.0,88520.0,0.18221692]
[1767001154435,0.0001694,88554.0,88537.0,0.0001694]
[1767001154728,0.0113073,88551.0,88537.0,0.0001694]
[1767001154926,0.0113086,88541.0,88515.0,0.09612]
[1767001155127,0.0113086,88541.0,88515.0,0.12612]
[1767001155526,0.0113086,88541.0,88515.0,0.1374319]
[1767001155727,0.15388,88542.0,88515.0,0.12612]
[1767001155929,0.15388,88542.0,88520.0,0.0001694]
[1767001156124,0.15388,88542.0,88520.0,0.0114806]
[1767001156324,0.1651886,88542.0,88520.0,0.0001694]
[1767001156534,0.15388,88542.0,88520.0,0.0001694]
[1767001156927,0.0113087,88540.0,88520.0,0.0001694]
[1767001157231,0.15388,88542.0,88520.0,0.0001694]
[1767001157436,0.15388,88542.0,88520.0,0.0301694]
[1767001157826,0.15388,88542.0,88521.0,0.0113111]
[1767001158139,0.15388,88542.0,88521.0,0.0413111]
[1767001158632,0.15388,88542.0,88524.0,0.0113108]
[1767001158833,0.0001694,88554.0,88524.0,0.05776]
[1767001159132,0.14672,88553.0,88530.0,0.0113099]
[1767001159334,0.0001694,88554.0,88530.0,0.0413099]
[1767001159637,0.05776,88553.0,88530.0,0.0413099]
[1767001159933,0.09612,88562.0,88540.0,0.0113087]
[1767001160136,0.05776,88561.0,88540.0,0.0113087]
[1767001160434,0.05776,88561.0,88543.0,0.0113082]
[1767001160737,0.05776,88561.0,88540.0,0.0113087]
[1767001160933,0.0001694,88559.0,88543.0,0.0113083]
[1767001161137,0.05772,88566.0,88543.0,0.0413083]
[1767001161333,0.1538,88566.0,88545.0,0.011308]
[1767001161526,0.1538,88566.0,88547.0,0.0113077]
[1767001161731,0.05772,88571.0,88550.0,0.0113074]
[1767001161931,0.07831011,88592.0,88550.0,0.21221692]
[1767001162131,0.0113033,88583.0,88562.0,0.0001694]
[1767001162535,0.05772,88584.0,88516.0,0.06081853]
[1767001162733,0.18221692,88560.0,88520.0,0.01]
[1767001162933,0.0113085,88542.0,88506.0,0.09608]
[1767001163135,0.0113105,88527.0,88505.0,0.09608]
[1767001163432,0.1651105,88527.0,88504.0,0.0113133]
[1767001163638,0.0001694,88524.0,88507.0,0.0001694]
[1767001164030,0.09608,88529.0,88507.0,0.0301694]
[1767001164332,0.05772,88543.0,88518.0,0.0113115]
[1767001164541,0.09608,88542.0,88518.0,0.0113115]
[1767001165032,0.0001694,88539.0,88521.0,0.0001694]
[1767001165437,0.09608,88542.0,88521.0,0.0001194]
[1767001165732,0.1538,88541.0,88523.0,0.0113108]
[1767001165932,0.05772,88543.0,88527.0,0.0113103]
[1767001166137,0.05772,88543.0,88523.0,0.0113108]
[1767001166536,0.05772,88543.0,88517.0,0.09608]
[1767001166537,5e-05,88542.0,88525.0,0.0113106]
[1767001166727,0.05772,88552.0,88534.0,0.0113095]
[1767001166932,0.05772,88552.0,88530.0,0.0113099]
[1767001167541,0.05772,88555.0,88532.0,0.0113096]
[1767001167736,0.05772,88555.0,88535.0,0.0001694]
[1767001168142,0.05772,88560.0,88536.0,0.09608]
[1767001168335,0.05772,88565.0,88543.0,0.0113083]
[1767001168642,0.0690256,88565.0,88539.0,0.0114782]
[1767001168838,0.05772,88565.0,88539.0,0.0301694]
[1767001169232,0.0113046,88572.0,88539.0,0.0301694]
[1767001169432,0.18221692,88590.0,88539.0,0.0301694]
[1767001169433,0.0113057,88564.0,88539.0,0.0301694]
[1767001169737,0.0113057,88564.0,88539.0,0.0414782]
[1767001170339,0.0113064,88559.0,88539.0,0.0001694]
[1767001170533,0.05772,88558.0,88539.0,0.0001694]
[1767001170846,0.05772,88558.0,88539.0,0.0301694]
[1767001171142,0.05772,88565.0,88539.0,0.0301694]
[1767001172128,0.05772,88565.0,88544.0,0.0113082]
[1767001172738,0.05947709,88589.0,88544.0,0.03]
[1767001172940,0.09608,88589.0,88560.0,0.0113061]
[1767001173241,0.09608,88588.0,88565.0,0.0113055]
[1767001173441,0.09608,88587.0,88559.0,0.0113063]
[1767001173640,0.18221692,88580.0,88556.0,0.0113067]
[1767001173835,0.05772,88579.0,88556.0,0.01]
[1767001174036,0.18221692,88600.0,88561.0,0.011306]
[1767001174233,0.011302,88593.0,88567.0,0.0113052]
[1767001174545,0.18221692,88580.0,88544.0,0.0113082]
[1767001174743,0.18221692,88580.0,88544.0,0.0413082]
[1767001174744,0.1538,88579.0,88544.0,0.0413082]
[1767001175142,0.0113031,88584.0,88544.0,0.0413082]
[1767001175344,0.0113034,88582.0,88544.0,0.03]
[1767001175647,0.0001694,88572.0,88555.0,0.0113067]
[1767001175844,0.1538,88571.0,88554.0,0.0001694]
[1767001176439,0.1538,88570.0,88554.0,0.0001694]
[1767001176645,0.1538,88569.0,88554.0,0.0001694]
[1767001177039,0.0001694,88572.0,88554.0,0.0001694]
[1767001177238,0.1538,88571.0,88554.0,0.0001694]
[1767001178147,0.1538,88570.0,88554.0,0.0001694]
[1767001178855,0.0001694,88572.0,88554.0,0.0001694]
[1767001179146,0.0001694,88572.0,88554.0,0.0301694]
[1767001179347,0.00744,88573.0,88554.0,0.0301694]
[1767001179649,0.05772,88573.0,88554.0,0.03]
[1767001179940,0.05772,88573.0,88565.0,0.0113054]
[1767001180143,0.05602,88573.0,88563.0,0.0113058]
[1767001180449,0.0001694,88578.0,88568.0,0.011305]
[1767001180649,0.1538,88577.0,88564.0,0.0001694]
[1767001180951,0.09608,88576.0,88565.0,0.0113055]
[1767001181742,0.1538,88575.0,88565.0,0.0113055]
[1767001182538,0.09608,88578.0,88565.0,0.0113055]
[1767001182745,0.05772,88577.0,88565.0,0.0113055]
[1767001183041,0.05772,88577.0,88564.0,0.0001694]
[1767001183242,0.05772,88577.0,88553.0,0.011307]
[1767001183446,0.05772,88577.0,88554.0,0.0113069]
[1767001183636,0.0001694,88582.0,88556.0,0.0113066]
[1767001183840,0.1538,88581.0,88556.0,0.0113066]
[1767001184040,0.1538,88581.0,88558.0,0.0113064]
[1767001184240,0.1538,88581.0,88561.0,0.0001694]
[1767001184638,0.0001694,88582.0,88561.0,0.0001694]
[1767001185145,0.0001694,88582.0,88562.0,0.0113058]
[1767001185336,0.05772,88581.0,88564.0,0.0113056]
[1767001185537,0.0001694,88582.0,88561.0,0.0001694]
[1767001185747,0.0113007,88603.0,88563.0,0.0113058]
[1767001186045,0.02394363,88602.0,88579.0,0.0113037]
[1767001186250,0.1538,88601.0,88567.0,0.1073853]
[1767001186450,0.0113004,88606.0,88567.0,0.1073853]
[1767001186451,0.0113004,88606.0,88567.0,0.1373853]
[1767001186654,0.00016907,88595.0,88578.0,0.0001693]
[1767001186950,0.05772,88594.0,88579.0,0.0113037]
[1767001187346,0.05772,88594.0,88581.0,0.0113034]
[1767001187550,0.05772,88594.0,88578.0,0.0114732]
[1767001187751,0.09608,88593.0,88568.0,0.0113051]
[1767001187941,0.1073825,88589.0,88561.0,0.011306]
[1767001188146,0.15376,88588.0,88563.0,0.0113057]
[1767001188346,0.09608,88589.0,88563.0,0.0113057]
[1767001188347,0.05772,88587.0,88568.0,0.0113051]
[1767001188542,0.0113019,88594.0,88568.0,0.0113051]
[1767001188748,0.09608,88589.0,88570.0,0.0113049]
[1767001188946,0.15376,88593.0,88571.0,0.0001693]
[1767001189346,0.09608,88589.0,88571.0,0.011474]
[1767001189752,0.09608,88589.0,88571.0,0.0301693]
[1767001189956,0.15376,88588.0,88577.0,0.0113039]
[1767001190255,0.05772,88587.0,88577.0,0.0113039]
[1767001190456,0.09608,88586.0,88577.0,0.0113039]
[1767001190753,0.00016907,88595.0,88571.0,0.0001693]
[1767001190754,0.05772,88587.0,88580.0,0.0113035]
[1767001190947,0.05772,88587.0,88572.0,0.0113046]
[1767001191146,0.05772,88587.0,88574.0,0.0113043]
[1767001191353,0.0113049,88571.0,88544.0,0.0113082]
[1767001191552,0.1650249,88570.0,88544.0,0.03]
[1767001191860,0.0113056,88565.0,88543.0,0.09604]
[1767001192157,0.09604,88569.0,88543.0,0.02]
[1767001192454,0.09604,88569.0,88548.0,0.0113077]
[1767001192648,0.0001693,88565.0,88548.0,0.0113077]
[1767001193053,0.0001693,88565.0,88552.0,0.0113071]
[1767001193349,0.15372,88564.0,88552.0,0.0113071]
[1767001193749,0.0001693,88565.0,88547.0,0.0001693]
[1767001193750,0.0001693,88565.0,88551.0,0.0113073]
[1767001194052,0.0001693,88565.0,88553.0,0.0113071]
[1767001194949,0.0001693,88565.0,88552.0,0.0113071]
[1767001195251,0.0148493,88565.0,88552.0,0.0113071]
[1767001196552,0.0001693,88565.0,88554.0,0.0113068]
[1767001196746,0.0001693,88565.0,88551.0,0.0113073]
[1767001196747,0.0578493,88565.0,88551.0,0.0113073]
[1767001196951,0.0578493,88565.0,88555.0,0.0113067]
[1767001197142,0.0113024,88590.0,88547.0,0.0001693]
[1767001197348,0.17756594,88589.0,88552.0,0.0113071]
[1767001197554,0.02384594,88588.0,88552.0,0.03]
[1767001197754,0.02384594,88587.0,88566.0,0.0113054]
[1767001198052,0.02384594,88586.0,88566.0,0.03]
[1767001198253,0.17773524,88585.0,88567.0,0.0001693]
[1767001198555,0.09604,88584.0,88567.0,0.0001693]
[1767001198742,0.15372,88583.0,88573.0,0.0113044]
[1767001199455,0.0001693,88585.0,88570.0,0.0113049]
[1767001199656,0.0001693,88585.0,88574.0,0.0113043]
[1767001200452,0.05768,88604.0,88574.0,0.03]
[1767001200657,0.11990088,88603.0,88578.0,0.0113038]
[1767001200855,0.02386088,88602.0,88582.0,0.0113033]
[1767001201052,0.02386088,88602.0,88592.0,0.0113021]
[1767001201261,0.15372,88615.0,88601.0,0.0113008]
[1767001201557,0.00016907,88617.0,88607.0,0.0113001]
[1767001201759,0.05768,88626.0,88600.0,0.09604]
[1767001202054,0.1201,88628.0,88601.0,0.09604]
[1767001202254,0.17778,88628.0,88601.0,0.12604]
[1767001202560,0.05768,88628.0,88607.0,0.0113001]
[1767001202755,0.0001693,88626.0,88609.0,0.0001693]
[1767001203061,0.0001693,88626.0,88613.0,0.0112994]
[1767001203358,0.05947709,88652.0,88618.0,0.0112987]
[1767001203658,0.05947709,88652.0,88618.0,0.03]
[1767001203659,0.09604,88652.0,88618.0,0.03]
[1767001203862,1.5,88661.0,88619.0,0.13107798]
[1767001204058,1.5,88661.0,88619.0,0.2626239]
[1767001204256,1.5,88661.0,88638.0,0.0112961]
[1767001204453,1.5,88661.0,88639.0,0.0001693]
[1767001204767,0.011295,88648.0,88618.0,0.09604]
[1767001204947,0.09604,88656.0,88618.0,0.09604]
[1767001204948,0.05768,88649.0,88618.0,0.12604]
[1767001205157,0.05768,88649.0,88619.0,0.0112986]
[1767001205362,0.05768,88649.0,88577.0,0.11733873]
[1767001205660,0.0112982,88623.0,88590.0,0.2430842]
[1767001205862,0.0112989,88618.0,88591.0,0.09604]
[1767001206053,0.0112984,88621.0,88591.0,0.12604]
[1767001206253,0.14304,88622.0,88595.0,0.0113016]
[1767001206462,0.14304,88622.0,88585.0,0.0113029]
[1767001206463,0.0112989,88618.0,88585.0,0.0113029]
[1767001206760,0.0112992,88615.0,88585.0,0.03]
[1767001206952,0.0001693,88609.0,88585.0,0.03]
[1767001207463,0.15372,88610.0,88585.0,0.03]
[1767001207464,0.1523893,88610.0,88585.0,0.0113029]
[1767001208550,0.0001693,88606.0,88589.0,0.0001693]
[1767001209455,0.0001693,88606.0,88585.0,0.0113029]
[1767001209665,0.0001693,88606.0,88559.0,0.09604]
[1767001209959,0.011303,88586.0,88560.0,0.03009412]
[1767001210167,0.0113035,88581.0,88560.0,9.412e-05]
[1767001210463,0.0001693,88579.0,88560.0,4.12e-06]
[1767001210962,0.0001693,88579.0,88540.0,0.0113087]
[1767001211166,0.0113054,88567.0,88540.0,0.03]
[1767001211360,0.15372,88566.0,88540.0,0.03]
[1767001211865,0.15372,88566.0,88544.0,0.0001693]
[1767001212164,0.15372,88566.0,88545.0,0.0113081]
[1767001212165,9.412e-05,88565.0,88545.0,0.0113081]
[1767001212356,9.412e-05,88565.0,88549.0,0.0113076]
[1767001212557,9.412e-05,88565.0,88544.0,0.0001693]
[1767001212759,9.412e-05,88565.0,88544.0,0.0414775]
[1767001213153,9.412e-05,88565.0,88548.0,0.0113077]
[1767001213370,9.412e-05,88565.0,88545.0,0.0113081]
[1767001214268,9.412e-05,88565.0,88545.0,0.0413081]
[1767001214658,0.15372,88564.0,88545.0,0.0413081]
[1767001214859,0.0114731,88579.0,88545.0,0.0413081]
[1767001214860,0.0114731,88579.0,88548.0,0.0113076]
[1767001215059,0.15264,88578.0,88548.0,0.0113076]
[1767001215466,0.0114731,88579.0,88544.0,0.0001693]
[1767001215467,0.15372,88577.0,88544.0,0.0001693]
[1767001215768,0.15372,88577.0,88544.0,0.0301693]
[1767001216358,0.0001693,88579.0,88553.0,0.011307]
[1767001216660,0.05768,88576.0,88548.0,0.0113076]
[1767001217265,0.0001693,88579.0,88548.0,0.03]
[1767001217462,0.05768,88575.0,88548.0,0.03]
[1767001217763,0.15372,88574.0,88548.0,0.03]
[1767001218364,0.0113045,88573.0,88548.0,0.03]
[1767001218667,0.15372,88574.0,88548.0,0.03]
[1767001218968,0.15372,88574.0,88544.0,0.0001693]
[1767001219155,0.15372,88574.0,88544.0,0.0101693]
[1767001219665,0.0113047,88572.0,88523.0,0.0113108]
[1767001219868,0.0113073,88552.0,88523.0,0.0413108]
[1767001220162,0.15372,88551.0,88526.0,0.0113104]
[1767001220359,0.13676,88550.0,88526.0,0.0113104]
[1767001220559,0.00016941,88547.0,88529.0,0.00016941]
[1767001220869,0.011308,88546.0,88512.0,0.15372]
[1767001221169,0.00016941,88547.0,88525.0,0.0113105]
[1767001221870,0.00016941,88547.0,88527.0,0.00011313]
[1767001222064,0.14673701,88550.0,88527.0,0.00011313]
[1767001223069,0.00016941,88547.0,88528.0,0.0113102]
[1767001223269,0.15372,88546.0,88528.0,0.0113102]
[1767001223463,0.15372,88546.0,88527.0,0.00011313]
[1767001223770,0.0113085,88542.0,88512.0,0.15372]
[1767001223961,0.0113085,88542.0,88512.0,0.03]
[1767001224460,0.15372,88546.0,88512.0,0.03]
[1767001224662,0.0113087,88541.0,88516.0,0.0113117]
[1767001224968,0.0113087,88541.0,88520.0,0.00016941]
[1767001225862,0.15372,88546.0,88520.0,0.00016941]
[1767001226063,0.15372,88546.0,88499.0,0.05768]
[1767001226064,0.03489234,88545.0,88499.0,0.0113138]
[1767001226262,0.011311,88523.0,88498.0,0.011314]
[1767001226463,0.0113112,88521.0,88498.0,0.011314]
[1767001226665,0.15376,88520.0,88485.0,0.09608]
[1767001226864,0.0113107,88525.0,88485.0,0.12608]
[1767001227168,0.00016941,88514.0,88486.0,0.12426783]
[1767001227370,0.00016941,88514.0,88486.0,0.15426783]
[1767001227772,0.00016941,88514.0,88499.0,0.011314]
[1767001227973,0.00016941,88514.0,88499.0,0.041314]
[1767001228474,0.15376,88520.0,88504.0,0.0113133]
[1767001228671,0.05376,88520.0,88498.0,0.011314]
[1767001228972,0.05376,88520.0,88498.0,0.041314]
[1767001229269,0.05376,88520.0,88500.0,0.0113138]
[1767001229573,0.00016941,88518.0,88500.0,0.03016941]
[1767001229765,0.00016941,88518.0,88500.0,0.00016941]
[1767001231071,0.1201,88517.0,88500.0,0.00016941]
[1767001231271,0.15376,88516.0,88500.0,0.00016941]
[1767001233777,0.1201,88517.0,88500.0,0.00016941]
[1767001234071,0.15376,88516.0,88483.0,0.09608]
[1767001234377,0.15376,88516.0,88490.0,0.0113151]
[1767001234573,0.15376,88516.0,88490.0,0.0413151]
[1767001234767,0.15376,88516.0,88493.0,0.0113147]
[1767001234967,0.15376,88516.0,88493.0,0.0413147]
[1767001235364,0.15376,88516.0,88493.0,0.03]
[1767001235777,0.15376,88516.0,88483.0,0.09608]
[1767001236078,0.15376,88516.0,88489.0,0.0113152]
[1767001236374,0.15376,88515.0,88490.0,0.011315]
[1767001236577,0.15376,88515.0,88490.0,0.041315]
[1767001237077,0.15376,88515.0,88492.0,0.0113148]
[1767001237276,0.15376,88515.0,88492.0,0.0413148]
[1767001237874,0.15376,88515.0,88492.0,0.0413147]
[1767001238177,0.15376,88515.0,88499.0,0.0113139]
[1767001238368,0.15376,88515.0,88499.0,0.03]
[1767001238569,0.00016941,88518.0,88499.0,0.03]
[1767001238774,0.1538,88517.0,88499.0,0.03]
[1767001239579,0.1538,88517.0,88499.0,0.0413138]
[1767001240264,0.1538,88517.0,88483.0,0.09608]
[1767001240468,0.1538,88517.0,88495.0,0.0113145]
[1767001240680,0.1538,88517.0,88495.0,0.0413145]
[1767001241477,0.00016941,88518.0,88497.0,0.0113142]
[1767001241678,0.11148,88517.0,88497.0,0.0413142]
[1767001241980,0.0113106,88517.0,88494.0,0.09612]
[1767001242280,0.00016941,88518.0,88494.0,0.12612]
[1767001242472,0.00016941,88518.0,88494.0,0.09612]
[1767001242673,0.0113111,88513.0,88494.0,0.09612]
[1767001242976,0.0113114,88511.0,88488.0,0.1074342]
[1767001243174,0.05768,88510.0,88488.0,0.1374342]
[1767001244070,0.05768,88510.0,88491.0,0.0113138]
[1767001244274,0.05768,88510.0,88488.0,0.1074342]
[1767001244577,0.05768,88510.0,88490.0,0.011314]
[1767001244767,0.05768,88510.0,88493.0,0.0113136]
[1767001245279,0.05768,88510.0,88490.0,0.011314]
[1767001245678,0.05768,88510.0,88492.0,0.0113136]
[1767001245679,0.1201,88509.0,88492.0,0.0113136]
[1767001245876,0.1201,88509.0,88492.0,0.03]
[1767001246080,0.0201,88509.0,88492.0,0.03]
[1767001246281,0.0201,88509.0,88488.0,0.09612]
[1767001246478,0.1402,88509.0,88488.0,0.12612]
[1767001247181,0.1402,88509.0,88494.0,0.0113134]
[1767001247480,0.1402,88509.0,88488.0,0.12612]
[1767001247481,0.1402,88509.0,88491.0,0.0113138]
[1767001247783,0.1402,88509.0,88488.0,0.09612]
[1767001247984,0.1402,88509.0,88488.0,0.1374342]
[1767001248284,0.1402,88509.0,88492.0,0.0113137]
[1767001248478,0.1402,88509.0,88492.0,0.0413137]
[1767001248677,0.1402,88509.0,88491.0,0.0113138]
[1767001248876,0.1402,88509.0,88491.0,0.0413138]
[1767001249683,0.19788,88509.0,88491.0,0.03]
[1767001250268,0.07778,88509.0,88491.0,0.03]
[1767001250483,0.07778,88509.0,88490.0,0.0113139]
[1767001250984,0.0201,88509.0,88490.0,0.011314]
[1767001251289,0.0201,88509.0,88488.0,0.09612]
[1767001251582,0.0113121,88505.0,88488.0,0.03]
[1767001251784,9.092e-05,88504.0,88488.0,0.03]
[1767001252285,0.011314,88491.0,88477.0,0.09612]
[1767001252471,0.0001695,88493.0,88477.0,0.12612]
[1767001252672,0.0113138,88492.0,88477.0,0.03]
[1767001252880,0.0001695,88493.0,88477.0,0.03]
[1767001253187,0.0001695,88493.0,88324.0,0.0566763]
[1767001253188,0.0113172,88466.0,88456.0,0.08980671]
[1767001253380,0.0113173,88465.0,88444.0,0.09612]
[1767001253580,0.0113172,88465.0,88437.0,0.0113207]
[1767001253776,0.0113172,88465.0,88437.0,0.0413207]
[1767001253777,0.0001696,88460.0,88437.0,0.0413207]
[1767001254079,0.0113181,88458.0,88437.0,0.03]
[1767001254271,0.0113185,88455.0,88437.0,0.03]
[1767001254476,0.0113205,88440.0,88402.0,0.00011387]
[1767001254676,0.0001696,88430.0,88407.0,0.09612]
[1767001254881,0.1514896,88430.0,88407.0,0.12612]
[1767001255281,0.00012348,88439.0,88407.0,0.12612]
[1767001255282,1.5,88437.0,88420.0,0.0113228]
[1767001255483,0.1538,88436.0,88410.0,0.0113242]
[1767001255686,0.1538,88436.0,88410.0,0.0413242]
[1767001255881,0.1538,88436.0,88410.0,0.03]
[1767001256078,0.1538,88435.0,88411.0,0.011324]
[1767001256284,0.0001696,88432.0,88414.0,0.0001696]
[1767001256479,0.0001696,88432.0,88414.0,0.0301696]
[1767001256784,0.1538,88431.0,88414.0,0.0301696]
[1767001256981,0.1538,88431.0,88414.0,0.0001696]
[1767001257192,0.0001696,88432.0,88414.0,0.0001696]
[1767001257380,0.05768,88436.0,88419.0,0.0113231]
[1767001257988,0.05768,88436.0,88419.0,0.0413231]
[1767001258189,1.5,88437.0,88424.0,0.0113224]
[1767001258392,1.5275106,88437.0,88424.0,0.03]
[1767001258592,0.04721925,88437.0,88424.0,0.03]
[1767001258793,0.09616,88447.0,88424.0,0.0413224]
[1767001259096,0.0113172,88465.0,88430.0,0.18265028]
[1767001259287,1.60736,88464.0,88430.0,0.03]
[1767001259593,1.60736,88464.0,88417.0,0.09616]
[1767001259594,0.11981869,88463.0,88417.0,0.09616]
[1767001259797,0.0113193,88449.0,88417.0,0.12616]
[1767001259983,0.15384,88448.0,88417.0,0.12616]
[1767001260184,0.15384,88447.0,88418.0,0.11307676]
[1767001260388,0.15384,88447.0,88418.0,0.03]
[1767001260579,0.0113206,88439.0,88400.0,0.0113254]
[1767001260784,0.0113216,88431.0,88402.0,0.03011387]
[1767001260990,0.0001696,88425.0,88402.0,0.03011387]
[1767001261287,0.0001696,88425.0,88391.0,0.08068]
[1767001261288,0.0113236,88415.0,88392.0,0.04995]
[1767001261491,0.0001696,88425.0,88345.0,0.09616]
[1767001261492,0.18265028,88402.0,88345.0,0.09616]
[1767001261792,0.0113222,88427.0,88345.0,0.09616]
[1767001261793,0.18265028,88430.0,88360.0,0.18265028]
[1767001261990,0.00016974,88404.0,88386.0,0.00016974]
[1767001262193,0.01143091,88403.0,88371.0,0.0113292]
[1767001262499,0.00010571,88403.0,88375.0,0.0113287]
[1767001262997,0.00010571,88403.0,88374.0,0.0113288]
[1767001263189,0.00010571,88403.0,88359.0,0.0690107]
[1767001263190,0.0113266,88392.0,88359.0,0.0690107]
[1767001263394,0.011327,88389.0,88359.0,0.03]
[1767001263784,0.15394318,88391.0,88353.0,0.09616]
[1767001263983,0.15394318,88391.0,88353.0,0.12616]
[1767001264181,0.0113269,88390.0,88353.0,0.03]
[1767001264385,0.0113279,88382.0,88353.0,0.03]
[1767001264584,0.09616,88389.0,88353.0,0.03]
[1767001264790,0.0113293,88371.0,88337.0,0.0113336]
[1767001264994,0.00016974,88376.0,88330.0,0.0113344]
[1767001264995,0.0113302,88364.0,88330.0,0.0113344]
[1767001265193,0.00016974,88356.0,88335.0,0.0113338]
[1767001265383,4e-08,88354.0,88335.0,0.03]
[1767001265587,0.10352,88362.0,88335.0,0.03]
[1767001265794,0.0001128,88361.0,88335.0,0.03]
[1767001266188,0.0113318,88352.0,88309.0,0.0962]
[1767001266491,0.0113286,88376.0,88322.0,0.00016974]
[1767001266492,0.00016974,88339.0,88322.0,0.00016974]
[1767001266695,0.15400061,88338.0,88290.0,0.18265028]
[1767001266892,0.0113306,88361.0,88322.0,0.0113354]
[1767001267096,0.18265028,88380.0,88322.0,0.03]
[1767001267289,0.0566284,88400.0,88322.0,0.03]
[1767001267290,0.15392,88379.0,88322.0,0.03]
[1767001267485,0.0962,88378.0,88340.0,0.18265028]
[1767001267696,0.0113288,88375.0,88340.0,0.21265028]
[1767001267992,0.01149964,88366.0,88349.0,0.00016974]
[1767001268191,0.00013724,88374.0,88350.0,0.0113318]
[1767001268394,0.0962,88383.0,88360.0,0.18265028]
[1767001268590,0.0962,88384.0,88360.0,0.03]
[1767001268787,0.0113286,88376.0,88342.0,0.0113328]
[1767001268986,0.0962,88384.0,88342.0,0.03]
[1767001269394,0.00016974,88372.0,88343.0,0.0113327]
[1767001269601,0.18265028,88370.0,88330.0,0.0113345]
[1767001269789,0.18265028,88370.0,88330.0,0.03]
[1767001269988,0.15402883,88371.0,88328.0,0.0113347]
[1767001270291,0.00016974,88358.0,88341.0,0.00016974]
[1767001270487,0.15402883,88357.0,88341.0,0.00016974]
[1767001270795,0.15402883,88357.0,88328.0,0.0113346]
[1767001271094,0.0113316,88353.0,88328.0,0.03]
[1767001271285,0.15402883,88357.0,88320.0,0.09624]
[1767001271488,0.15402883,88357.0,88320.0,0.03]
[1767001271489,0.0113324,88346.0,88320.0,0.03]
[1767001271686,0.15402883,88345.0,88320.0,0.03]
[1767001271896,0.15402883,88345.0,88302.0,0.00012836]
[1767001271897,0.0113337,88337.0,88306.0,0.1075775]
[1767001272088,0.00016974,88330.0,88308.0,0.0113373]
[1767001272289,0.00016974,88330.0,88308.0,0.03]
[1767001272495,6.883e-05,88329.0,88318.0,0.011336]
[1767001272687,0.09624,88357.0,88319.0,0.15396]
[1767001272889,0.09624,88357.0,88327.0,0.0113349]
[1767001273103,0.09624,88357.0,88330.0,0.0113345]
[1767001273289,0.09624,88357.0,88319.0,0.09624]
[1767001273494,0.09624,88357.0,88319.0,0.12624]
[1767001273804,0.00016984,88347.0,88329.0,0.00016984]
[1767001274000,0.00016984,88347.0,88329.0,0.09640984]
[1767001274293,0.00016984,88347.0,88329.0,0.00016984]
[1767001274294,0.09640984,88347.0,88329.0,0.00016984]
[1767001274500,0.09640984,88347.0,88330.0,0.0113344]
[1767001275000,0.06649745,88347.0,88330.0,0.03]
[1767001275205,0.06649745,88347.0,88331.0,0.0113343]
[1767001275504,0.0679566,88396.0,88314.0,0.09624]
[1767001275505,0.05772,88346.0,88314.0,0.09624]
[1767001275695,0.09624,88345.0,88314.0,0.03]
[1767001276299,0.09624,88345.0,88315.0,0.0113364]
[1767001276502,0.00016984,88339.0,88321.0,0.00016984]
[1767001277099,0.00016984,88339.0,88321.0,0.03016984]
[1767001277405,0.18265028,88360.0,88321.0,0.03016984]
[1767001277406,0.15404,88342.0,88321.0,0.03016984]
[1767001277700,0.05776,88342.0,88321.0,0.03]
[1767001278100,0.05776,88342.0,88324.0,0.0113352]
[1767001278289,0.05792984,88342.0,88324.0,0.00016984]
[1767001279197,0.0113331,88341.0,88324.0,0.00016984]
[1767001279404,0.05792984,88342.0,88320.0,0.09628]